Cogmind - Beta 17 @@@ ROGUE MODE // 2026.08.03 @ 22:56:40 Player: Mogmind Result: Destroyed by D-53 Grenadier with Mini Grenade Launcher Performance ------------- Evolutions (0) 0 Regions Visited (2) 400 Robots Destroyed (8) 40 Value Destroyed (187) 187 Prototype IDs (0) 0 Alien Tech Used (0) 0 Bonus (0) 0 TOTAL SCORE: 627 Bonus ------- None Cogmind --------- Core Integrity 0/250 Matter 242/300 Energy 75/100 System Corruption 3% Temperature Cool (0) Movement Rolling (90) Location -10/Mines Parts ------- > --- POWER (1) -------- (None) > --- PROPULSION (2) --- Armored Wheel Armored Wheel > --- UTILITY (2) ------ Large Storage Unit > --- WEAPON (2) ------- (None) > --- INVENTORY (15) --- Ion Engine Light Treads Light Treads Aluminum Leg Medium Storage Unit Large Storage Unit Light EM Pulse Cannon Mining Laser EMP Trap EMP Trap EMP Trap Peak State ------------ > --- POWER ------------ (None) > --- PROPULSION ------- Armored Wheel Armored Wheel > --- UTILITY ---------- Large Storage Unit > --- WEAPON ----------- Bore Cannon Grenade Launcher > --- INVENTORY -------- Ion Engine Light Treads Light Treads Aluminum Leg Medium Storage Unit Large Storage Unit Light EM Pulse Cannon Mining Laser EMP Trap EMP Trap EMP Trap [Rating: 12] Favorites ----------- Power Light Ion Engine Engine Light Ion Engine Propulsion Aluminum Leg Leg Aluminum Leg Wheel Armored Wheel Utility Hardened Light Armor Plating Storage Large Storage Unit Protection Hardened Light Armor Plating Weapon Light Assault Rifle Energy Cannon Light EM Pulse Cannon Ballistic Gun Light Assault Rifle Ballistic Cannon Bore Cannon Launcher Grenade Launcher Build | -11 -10 -10 ------- Run | Yrd Mat Min Slots Evolved . | . . . Power . | . . . Propulsion . | . . . Utility . | . . . Weapon . | . . . Parts Attached 16 | 6 5 5 Power 2 | 1 1 . Engine 2 | 1 1 . Core . | . . . Reactor . | . . . Propulsion 6 | 2 1 3 Treads . | . . . Leg 4 | 2 1 1 Wheel 2 | . . 2 Hover . | . . . Flight . | . . . Utility 3 | 1 2 . Device . | . . . Storage 2 | 1 1 . Processor . | . . . Hackware . | . . . Protection 1 | . 1 . Artifact . | . . . Weapon 5 | 2 1 2 Energy Gun . | . . . Energy Cannon 1 | . 1 . Ballistic Gun 2 | 2 . . Ballistic Cannon 1 | . . 1 Launcher 1 | . . 1 Special Weapon . | . . . Impact Weapon . | . . . Slashing Weapon . | . . . Piercing Weapon . | . . . Special Melee Weapon . | . . . Unidentified Prototypes . | . . . Parts Lost 9 | . . 9 Power 1 | . . 1 Propulsion 2 | . . 2 Utility 1 | . . 1 Weapon 5 | . . 5 Highest Loss Streak 8 | . . 8 To Critical Strikes . | . . . Average Backups 10 | 2 10 12 Power 1 | . 1 1 Propulsion 4 | 1 4 5 Utility 1 | . 1 2 Weapon 3 | . 2 3 Tool/Special . | . . . Unused Backups 6 | . . 6 Power 1 | . . 1 Propulsion 2 | . . 2 Utility 2 | . . 2 Weapon 1 | . . 1 Tool/Special . | . . . Average Slot Usage (%) 97 | . 99 96 Engine 13 | . 14 13 Leg 27 | . 28 26 Storage 14 | . 14 14 Protection 13 | . 13 13 Energy Cannon 9 | . 13 6 Ballistic Gun 17 | . 14 19 Peak Build Rating 12 | 6 10 12 Average Rating 9 | 4 9 9 On Entrance 5 | . 6 10 Avg Prop Armor Cover (%) . | . . . Naked Turns . | . . . Heaviest Build 33 | 11 33 33 Greatest Support 24 | 20 20 24 Greatest Overweight (x) 1 | . 1 1 Average Overweight (x) . | . . . Largest Inventory Capacity 15 | 8 15 15 Average Capacity 13 | 6 13 15 Most Carried 15 | 3 13 15 Average Carried 10 | 2 10 12 Final Capacity 15 | 8 15 15 Final Carried 13 | 3 13 11 Class Distribution -------------------- 100% | Mutant Dominant Class ---------------- Mutant | -10/Materials Mutant | -10/Mines Resources | -11 -10 -10 ----------- Run | Yrd Mat Min Matter Collected 411 | 186 139 86 Remotely . | . . . Salvage Created 340 | . 231 109 Parts 16 | . 16 . Haulers Intercepted . | . . . Recyclers Shooed . | . . . Parts Field Recycled . | . . . Retrieved Matter . | . . . Parts Self-Destructed . | . . . Prevented . | . . . Parts Restored . | . . . Kills | -11 -10 -10 ------- Run | Yrd Mat Min Combat Hostiles Destroyed 13 | . 6 7 Guns 4 | . 1 3 Cannons 8 | . 4 4 AOE 1 | . 1 . Classes Destroyed 4 | . 3 1 Watcher 2 | . 2 . Swarmer 3 | . 3 . Grunt 3 | . 3 . Assembled 7 | . . 7 Best Kill Streak 4 | . 4 2 Combat Bots Only 3 | . 3 2 Max Kills in Single Turn 1 | . 1 1 Gunslinging . | . . . Exploded 1 | . 1 . Melee . | . . . Uniques/NPCs Destroyed . | . . . Combat | -11 -10 -10 -------- Run | Yrd Mat Min Hostile Shots Fired 84 | . 33 51 Missed 12 | . 7 5 Hits 72 | . 26 46 Melee 5 | . . 5 Projectile 67 | . 26 41 AOE 16 | . . 16 Part Disruptions 1 | . . 1 Damage Taken 1430 | . 272 1158 Core 260 | . 38 222 Absorbed by Shields . | . . . Core Remaining (%) 100 | 100 . . Volleys Fired 52 | . 17 35 Largest 2 | . 2 2 Hottest 78 | . 76 78 Shots Fired 94 | . 34 60 Gun 56 | . 17 39 Cannon 37 | . 17 20 Launcher 1 | . . 1 Special . | . . . Kinetic 60 | . 17 43 Thermal . | . . . Explosive 1 | . . 1 Electromagnetic 33 | . 17 16 Robot Hit Streak 7 | . 6 7 Robot Miss Streak 4 | . 4 4 Penetration Max . | . . . Secondary Targets . | . . . Shots Hit Robots 47 | . 16 31 Core Hits 27 | . 13 14 Critical Kills . | . . . Critical Parts Destroyed 1 | . . 1 Critical Strikes 1 | . . 1 Destroy 1 | . . 1 Melee Attacks . | . . . Impact . | . . . Slashing . | . . . Piercing . | . . . Sneak Attacks . | . . . Combat Hostiles . | . . . Follow-up Attacks . | . . . Damage Inflicted 780 | . 368 412 Guns 232 | . 53 179 Cannons 453 | . 233 220 Explosions 95 | . 82 13 Melee . | . . . Ramming . | . . . Kinetic 242 | . 53 189 Thermal 82 | . 82 . Explosive 13 | . . 13 Electromagnetic 443 | . 233 210 Impact . | . . . Slashing . | . . . Piercing . | . . . Highest Corruption 3 | . . 3 Average Corruption 3 | . . 3 Corruption Purged . | . . . Corruption Blocked . | . . . Effects 2 | . . 2 Matter Fused 1 | . . 1 Data Loss (minor) 1 | . . 1 Overload Shots . | . . . Overflow Damage . | . . . Projectiles . | . . . Explosions . | . . . Melee . | . . . Knockbacks . | . . . Impact . | . . . Kinetic . | . . . Secondary . | . . . Self-Inflicted Damage 35 | . 35 . Shots 1 | . 1 . Rammed . | . . . Targets Rammed . | . . . Kicked . | . . . Crushed . | . . . Highest Temperature 349 | . 259 349 Average Temperature 136 | . 114 154 Received Heat Transfer 151 | . 51 100 Effects 2 | . . 2 Energy Bleed 1 | . . 1 Short Circuit 1 | . . 1 Siege Activations . | . . . Martial Activations . | . . . Shielding Activations . | . . . Robots Disrupted . | . . . Combat Hostiles . | . . . Robots Corrupted . | . . . Combat Hostiles . | . . . Parts Fried . | . . . Impact Corruptions . | . . . Robots Melted . | . . . Combat Hostiles . | . . . Parts Melted . | . . . Heat Transferred 150 | . 150 . Parts Sabotaged . | . . . Parts Stolen . | . . . Parts Stripped . | . . . Power Chain Reactions 2 | . 2 . Alert | -11 -10 -10 ------- Run | Yrd Mat Min Maximum Alert Level . | . . . Low Security (%) 100 | 100 100 100 Level 1 . | . . . Level 2 . | . . . Level 3 . | . . . Level 4 . | . . . Level 5 . | . . . High Security . | . . . Max Security . | . . . Peak Influence 129 | . 129 25 Initial 25 | . . 25 Average 23 | . 51 2 Influence Increases 211 | . 206 5 Destroy 0b10 Robot/C 120 | . 120 . Destroy 0b10 Robot/NC 10 | . 10 . Destroy Leader 24 | . 24 . Disable Machine 15 | . 15 . Destroy Structure 12 | . 7 5 Lose Combat Pursuer 30 | . 30 . Influence Decreases 211 | . 140 71 Entered New Map 41 | . . 41 Time Decay 165 | . 140 25 Lost Part 5 | . . 5 Squads Dispatched . | . . . Investigation . | . . . Extermination . | . . . Reinforcement . | . . . Assault . | . . . Garrison . | . . . Intercept . | . . . Searches Triggered . | . . . Construction Impeded . | . . . Haulers Reinforced . | . . . Active Scanning Responses . | . . . Cargo Convoy Interrupts . | . . . Stealth | -11 -10 -10 --------- Run | Yrd Mat Min Distress Signals 3 | . 3 . Communications Jammed . | . . . Distress Signals . | . . . Times Spotted 29 | . 10 19 Peak Tracking Total 7 | . 5 7 Tactical Retreats 7 | . 1 6 Traps | -11 -10 -10 ------- Run | Yrd Mat Min Traps Triggered . | . . . Indirectly . | . . . Trap Hack Attempts . | . . . Triggered . | . . . Disarmed . | . . . Reprogrammed . | . . . Reused . | . . . Traps Extracted . | . . . Installed . | . . . Triggered . | . . . Most Traps Carried 3 | . . 3 Machines | -11 -10 -10 ---------- Run | Yrd Mat Min Machines Disabled 1 | . 1 . Max in Single Turn 1 | . 1 . Machines Repaired . | . . . Machines Dismantled . | . . . Machines Sabotaged . | . . . Overloaded Fab Kills . | . . . Hacking | -11 -10 -10 --------- Run | Yrd Mat Min Machines Accessed . | . . . Terminals . | . . . Fabricators . | . . . Repair Stations . | . . . Recycling Units . | . . . Scanalyzers . | . . . Garrison Access . | . . . Total Hacks . | . . . Successful . | . . . Failed . | . . . Catastrophic . | . . . Database Lockouts . | . . . Manual . | . . . Terminals . | . . . Fabricators . | . . . Repair Stations . | . . . Recycling Units . | . . . Scanalyzers . | . . . Garrison Access . | . . . Terminal Hacks . | . . . Fabricator Hacks . | . . . Repair Station Hacks . | . . . Recycling Unit Hacks . | . . . Scanalyzer . | . . . Garrison Access Hacks . | . . . Unauthorized Hacks . | . . . Terminals . | . . . Fabricators . | . . . Repair Stations . | . . . Recycling Units . | . . . Scanalyzers . | . . . Garrison Access . | . . . Data Cores Recovered . | . . . Used . | . . . Hacking Detections . | . . . Full Trace Events . | . . . Feedback Events . | . . . Feedback Blocked . | . . . Robot Schematics Acquired . | . . . Robots Built . | . . . Authchips . | . . . Time . | . . . Total Robot Build Rating . | . . . Part Schematics Acquired . | . . . Parts Built . | . . . Authchips . | . . . Time . | . . . Total Part Build Rating . | . . . Part Studies Acquired . | . . . Parts Repaired . | . . . Time . | . . . Parts Recycled . | . . . Recycled Matter . | . . . Retrieved Matter . | . . . Retrieved Components . | . . . Parts Scanalyzed . | . . . Part Schematics Acquired . | . . . Parts Damaged . | . . . Bothacking | -11 -10 -10 ------------ Run | Yrd Mat Min Used RIF Installer . | . . . Robots Hacked . | . . . Non-combat . | . . . Combat . | . . . Robot Hacks Applied . | . . . Relay Couplers Released . | . . . Fabnet Peak Effective % . | . . . Robots Rewired . | . . . Allies Hacked . | . . . Hacks Repelled . | . . . Allies | -11 -10 -10 -------- Run | Yrd Mat Min Total Allies . | . . . Largest Group . | . . . Highest-Rated Group . | . . . Highest-Rated Ally . | . . . Total Orders . | . . . Ally Attacks . | . . . Total Damage . | . . . Kills . | . . . Allies Corrupted . | . . . Allies Melted . | . . . Intel | -11 -10 -10 ------- Run | Yrd Mat Min Active Infowar (turns) . | . . . Robot Analysis Total . | . . . Derelict Logs Recovered . | . . . Drone Launches . | . . . Drone Recoveries . | . . . Exploration | -11 -10 -10 ------------- Run | Yrd Mat Min Turns Passed 840 | 71 363 406 Spaces Moved 357 | 50 164 143 Core 1 | 1 . . Treads . | . . . Legs 351 | 49 164 138 Wheels 5 | . . 5 Hover . | . . . Flight . | . . . Fastest Speed 50 | 50 120 90 Average Speed 168 | 118 168 186 Slowest Speed 190 | 120 190 190 Overloaded Moves . | . . . Propulsion Burnouts . | . . . Robots Hopped . | . . . Potential Cave-ins . | . . . Cave-ins Triggered . | . . . Exploration Rate (%) 18 | 3 29 23 Regions Visited 2 Branch Regions 1 Pre-discovered Areas . | . . . Known Exits Taken . | . . . Unknown Exits Taken 2 | 1 1 . Scrap Searched . | . . . Spaces Dug . | . . . Terrain Destroyed 13 | . 6 7 Melee . | . . . Projectile 3 | . . 3 AOE 10 | . 6 4 Terrain Rammed . | . . . Walls Destroyed . | . . . Machines Disabled . | . . . Actions | -11 -10 -10 --------- Run | Yrd Mat Min Total 506 | 58 220 228 Wait 61 | . 23 38 Move 355 | 49 163 143 Hop . | . . . Pick Up 16 | 3 9 4 Fast Attach 8 | 6 2 . Attach 5 | . . 5 Detach 1 | . 1 . Swap 5 | . 3 2 Drop 3 | . 2 1 Fire 52 | . 17 35 Melee . | . . . Ram . | . . . Kick . | . . . Crush . | . . . Escape Stasis . | . . . Rewire . | . . . Trap . | . . . Miscellaneous . | . . . Route ------- -11/Scrapyard -10/Materials -10/Mines History --------- Turn | Location | Event 5 | -11/Scrapyard | Discovered new exit (range 16) 72 | -11/Scrapyard | Entered Materials 310 | -10/Materials | Build established: Mutant 375 | -10/Materials | Discovered new exit (range 16) 435 | -10/Materials | Entered Mines 436 | -10/Mines | Assembled infested the area 441 | -10/Mines | Assisted by a Guerilla fighting off Assembled 467 | -10/Mines | Met a Derelict bent on vengeance 741 | -10/Mines | Found a hidden stash of uninstalled traps 818 | -10/Mines | Core integrity fell below 50% 828 | -10/Mines | Core integrity fell below 20% 841 | -10/Mines | Destroyed by D-53 Grenadier with Mini Grenade Launcher Last Messages --------------- 00791_ Acquired 4 matter. 00817_ Lgt. Ion Engine destroyed. 00819_ Lgt. Assault Rifle destroyed. 00819_ Core Extractor disabled. 00822_ Hrd. Light Armor Plating destroyed. 00823_ Aluminum Leg destroyed. 00825_ Assault Rifle destroyed. 00828_ Aluminum Leg destroyed. 00829_ D-53 Grenadier suffers critical hit (Destroy). 00829_ Destroyed Mni. Grenade Launcher. 00831_ The unstable cave ceiling collapses. 00832_ HV Slug penetrates Wall. 00832_ HV Slug penetrates Earth. 00834_ Grenade Launcher destroyed. 00835_ The unstable cave ceiling collapses. 00836_ Bore Cannon destroyed. 00838_ U-05 Engineer lays Concrete. 00839_ The unstable cave ceiling collapses. 00839_ U-05 Engineer lays Concrete. Map ----- +----------------------------------------------------+ | ?????????# #### #????? | | ?????????# = ##??# #????? | | ?????????# ## ##???## #????? | | ?????????## ### #?????## #???? | | ??????????########?# #??????## #???? | | ?????????????#######%#????????#####???? | | ?????????????#!%%% #????????????????? | | ?????????????# ######????????????????? | | ?????????????# #?????????????????????? | | ?????????????#%%#?????????????????????? | | ?????????????# #?????????????????????? | | ????????###### #???###???????????????? | | ????????# #### ##??????????????? | | ????????## ## #??????????????? | | ?????????## " #??????????????? | | ??????????## #??????????????? | | ???????????# ## ##??????????????? | | ???????????# ### #####???????????????? | | ???????????# #?######?????????????????? | | ???????????# ###??# ?????????????????? | | ???????????# ##?#%#?????????????????? | | ??????????## ### #?????????????????? | | ??????????# ## #?????????????????? | | ??????????## ## #?????????????????? | | ???????????## ### #?????????????????? | | ?????????#####@ ### #?????????????????? | | ????????## # *%#?????????????????? | | ????????# #?????????????????? | | ????????# #?????????????????? | | ????????# #?????????????????? | | ????????## #?????????????????? | | ?????????## #?????????????????? | | ??????????# #?????????????????? | | ?????????# # #?????????????????? | | ?????????# " d ###?????????????????? | | ?????????# " % #???????????????????? | | ?????????# "" % ???????????????????? | | ?????????# ???????????????????? | | ?????????## u ??????????????????? | | ??????????# ### ??????????????????? | | ??????????# ??? ?????????????????? | | ??????????# ???# ?????????????????? | | ??????????# ????" ????????????????? | | ??????????# ?????# # ????????????????? | | ??????????? ??????##??????????????????? | | ??????????????????????????????????????? | | ??????????????????????????????????????? | | ??????????????????????????????????????? | | ??????????????????????????????????????? | | ??????????????????????????????????????? | +----------------------------------------------------+ Best States ------------- Heat Dissipation 25 Energy Generation 10 Energy Capacity 125 Matter Stores 300 Matter Capacity 300 Sight Range 16 Terrain Scan Density 10 Armor Coverage 150 Evasion (%) 55 Item Schematics ----------------- None Robot Schematics ------------------ None Fabricated ------------ Nothing Repaired ---------- Nothing Studied --------- None Alien Tech Used ----------------- None Achievements -------------- None Challenges ------------ None Game ------ Seed SpliceThermicCasing Manual? 0 Play Time 00:10:49 Cumulative 15.4 hours Start 2026.07.25 @ 13:56:49 End 2026.08.03 @ 22:56:40 Sessions 2 Manual Loads 0 Difficulty Rogue Special Mode None Game No. 22 Rogue 22 Adventurer 0 Explorer 0 Win Type - Total 0 Types 0/0/0/0/0/0/0/0/0/0 Lore% 6 Gallery% 17 Achievement% 13 Wizard Run 0 Options --------- Layout 1 ASCII 0 Keyboard 1 Movement Vi Keybinds 0 Fullscreen 1 Font 24/Smallcaps Map View 50x35 Zoom Use 0% Tactical HUD 1 Map Filters NONE Filters NONE Steam 1 RUN: bc5b8c1c-b55c-4e90-baa0-acd3669ef033